bitfinex/quotes_BTCUSD_20241123
["timestamp","ask_amount","ask_price","bid_price","bid_amount"]
[1732367288809,0.0017204,98521.0,98513.0,0.069]
[1732367289885,0.0017204,98521.0,98513.0,0.023]
[1732367293343,0.00086483,98521.0,98513.0,0.023]
[1732367294164,0.1314,98520.0,98513.0,0.023]
[1732367295100,0.0487,98520.0,98513.0,0.023]
[1732367295394,0.00086483,98521.0,98513.0,0.023]
[1732367295856,0.00086483,98521.0,98516.0,0.15]
[1732367296062,0.00086483,98521.0,98516.0,0.27131576]
[1732367296297,0.00086483,98521.0,98517.0,0.15]
[1732367297759,0.00086483,98521.0,98516.0,0.15]
[1732367299825,0.00086483,98521.0,98515.0,0.15]
[1732367300029,0.00086483,98521.0,98515.0,0.42131576]
[1732367302020,0.0487,98520.0,98515.0,0.42131576]
[1732367302223,0.0827,98519.0,98515.0,0.42131576]
[1732367303143,0.0827,98519.0,98512.0,0.04033634]
[1732367303555,0.0827,98519.0,98505.0,0.1508603]
[1732367303969,0.0827,98519.0,98505.0,0.19114665]
[1732367306068,0.00086483,98521.0,98515.0,0.15]
[1732367306290,0.00086483,98521.0,98516.0,0.023]
[1732367306712,0.00086483,98521.0,98520.0,0.023]
[1732367306935,0.00086483,98521.0,98516.0,0.023]
[1732367307144,0.00086483,98521.0,98520.0,0.44395222]
[1732367307435,0.00086483,98521.0,98520.0,0.173]
[1732367307890,0.00086483,98521.0,98520.0,0.44395853]
[1732367308098,0.00086483,98521.0,98520.0,0.44395938]
[1732367309184,0.00086483,98521.0,98520.0,0.023]
[1732367309405,0.00086483,98521.0,98513.0,0.023]
[1732367310699,0.00086483,98521.0,98513.0,0.1013]
[1732367310880,0.00086483,98521.0,98515.0,0.023]
[1732367311125,0.002027,98523.0,98515.0,0.023]
[1732367311774,0.0017204,98524.0,98516.0,0.02433444]
[1732367312010,0.0017204,98524.0,98517.0,0.023]
[1732367312223,0.0017204,98524.0,98518.0,0.00101491]
[1732367312439,0.0017204,98524.0,98519.0,0.00101491]
[1732367312651,0.0017204,98524.0,98518.0,0.02433438]
[1732367312874,0.0017204,98521.0,98519.0,0.023]
[1732367313272,0.0017204,98521.0,98519.0,0.00101492]
[1732367313511,0.0466,98537.0,98519.0,0.00101492]
[1732367314131,0.0844202,98539.0,98520.0,0.00101492]
[1732367314336,0.0844202,98539.0,98515.0,0.00101492]
[1732367314543,0.0844202,98539.0,98516.0,0.023]
[1732367314766,0.0844202,98539.0,98535.0,0.22577328]
[1732367314975,0.0844202,98539.0,98536.0,0.173]
[1732367315186,0.0844202,98539.0,98536.0,0.39877328]
[1732367315634,0.0844202,98539.0,98536.0,0.173]
[1732367316269,0.0844202,98539.0,98536.0,0.15]
[1732367316469,0.0844202,98539.0,98536.0,0.37580462]
[1732367317104,0.0844202,98539.0,98537.0,0.22580462]
[1732367317318,0.0844202,98539.0,98538.0,0.15]
[1732367318207,0.0844202,98539.0,98519.0,0.023]
[1732367318465,0.0844202,98539.0,98520.0,0.00101489]
[1732367319110,0.0844202,98539.0,98521.0,0.023]
[1732367319322,0.0844202,98539.0,98522.0,0.00101489]
[1732367319964,0.0844202,98539.0,98520.0,0.00101489]
[1732367320187,0.0844202,98539.0,98519.0,0.173]
[1732367322271,0.0844202,98539.0,98521.0,0.023]
[1732367322483,0.0844202,98539.0,98522.0,0.00101489]
[1732367322697,0.0844202,98539.0,98530.0,0.023]
[1732367323109,0.0844202,98539.0,98525.0,0.02401484]
[1732367323334,0.0844202,98539.0,98525.0,0.00101484]
[1732367324395,0.0844202,98539.0,98530.0,0.023]
[1732367324854,0.0844202,98539.0,98525.0,0.02401484]
[1732367325856,0.0017202,98539.0,98525.0,0.00101484]
[1732367327733,0.0017202,98539.0,98515.0,0.15]
[1732367327926,0.0017202,98539.0,98516.0,0.10302911]
[1732367328190,0.0017202,98539.0,98520.0,0.05440198]
[1732367328418,0.0017202,98539.0,98521.0,0.00101484]
[1732367328652,0.0017202,98539.0,98522.0,0.0774]
[1732367328891,0.0017202,98539.0,98523.0,0.00101484]
[1732367329809,0.0017202,98539.0,98531.0,0.15]
[1732367330066,0.0017202,98539.0,98532.0,0.023]
[1732367330789,0.0017202,98539.0,98529.0,0.173]
[1732367331015,0.0017202,98539.0,98530.0,0.023]
[1732367331507,0.1281,98537.0,98530.0,0.023]
[1732367331724,0.01155974,98549.0,98530.0,0.023]
[1732367331931,0.10201427,98548.0,98530.0,0.023]
[1732367332370,0.01155974,98549.0,98530.0,0.023]
[1732367332601,0.05440198,98550.0,98530.0,0.023]
[1732367332825,0.10201427,98550.0,98530.0,0.023]
[1732367333317,0.15641625,98550.0,98530.0,0.023]
[1732367333546,0.0379857,98550.0,98530.0,0.023]
[1732367333994,0.0379857,98550.0,98530.0,0.06385163]
[1732367334730,0.0829,98549.0,98530.0,0.06385163]
[1732367334993,0.0478,98548.0,98530.0,0.06385163]
[1732367335725,0.0379857,98550.0,98530.0,0.06385163]
[1732367335726,0.05440198,98550.0,98530.0,0.06385163]
[1732367335919,0.05440198,98550.0,98531.0,0.15]
[1732367336187,0.05440198,98550.0,98532.0,0.023]
[1732367336905,0.05526218,98550.0,98532.0,0.023]
[1732367338805,0.0478,98549.0,98532.0,0.023]
[1732367340472,0.0008602,98550.0,98534.0,0.023]
[1732367341108,0.0008602,98550.0,98535.0,0.02198764]
[1732367341320,0.26835833,98553.0,98536.0,0.023]
[1732367341539,0.10201427,98552.0,98536.0,0.023]
[1732367341751,0.26835833,98553.0,98536.0,0.023]
[1732367341955,0.34524285,98553.0,98536.0,0.023]
[1732367343125,0.34524285,98553.0,98532.0,0.023]
[1732367343363,0.34524285,98553.0,98532.0,0.04498764]
[1732367346317,0.34524285,98553.0,98534.0,0.023]
[1732367347380,0.34524285,98553.0,98533.0,0.023]
[1732367348526,0.34524285,98553.0,98532.0,0.023]
[1732367348937,0.34610315,98553.0,98532.0,0.023]
[1732367349350,0.07774482,98553.0,98532.0,0.023]
[1732367349564,0.07774482,98553.0,98532.0,0.29368021]
[1732367349775,0.07774482,98553.0,98534.0,0.023]
[1732367351103,0.07774482,98553.0,98538.0,0.0782]
[1732367351328,0.07774482,98553.0,98539.0,0.173]
[1732367351751,0.06724438,98553.0,98539.0,0.173]
[1732367352395,0.06724438,98553.0,98542.0,0.27068021]
[1732367352623,0.06724438,98553.0,98543.0,0.15]
[1732367353874,0.06724438,98553.0,98540.0,0.15]
[1732367354508,0.06724438,98553.0,98539.0,0.44385414]
[1732367354714,0.06724438,98553.0,98541.0,0.15]
[1732367355326,0.06724438,98553.0,98542.0,0.00244688]
[1732367355536,0.0008603,98553.0,98542.0,0.00244688]
[1732367358837,0.10201427,98552.0,98542.0,0.00244688]
[1732367359440,0.10201427,98552.0,98543.0,0.15]
[1732367359692,0.10201427,98552.0,98544.0,0.15761988]
[1732367360142,0.0008603,98553.0,98544.0,0.15761988]
[1732367360767,0.0008603,98553.0,98544.0,0.00761988]
[1732367361620,0.0008603,98553.0,98544.0,0.08581988]
[1732367362476,0.0008603,98553.0,98544.0,0.12601148]
[1732367362682,0.0008603,98553.0,98545.0,0.15]
[1732367365165,0.24355038,98557.0,98545.0,0.15]
[1732367365396,0.10201427,98556.0,98545.0,0.15]
[1732367366857,0.10201427,98556.0,98534.0,0.0017198]
[1732367367091,0.10201427,98556.0,98535.0,0.02378556]
[1732367367322,0.10201427,98556.0,98535.0,0.02457112]
[1732367367837,0.0497,98555.0,98535.0,0.02457112]
[1732367368057,0.10201427,98554.0,98535.0,0.02457112]
[1732367368266,0.05440198,98550.0,98534.0,0.04318974]
[1732367368488,0.15171427,98549.0,98534.0,0.04318974]
[1732367369871,0.01896851,98548.0,98534.0,0.04318974]
[1732367370098,0.12098278,98547.0,98534.0,0.04318974]
[1732367370281,0.10201427,98547.0,98534.0,0.04318974]
[1732367374649,0.10167531,98547.0,98534.0,0.04318974]
[1732367376828,0.0497,98543.0,98534.0,0.04318974]
[1732367377048,0.0497,98541.0,98534.0,0.04318974]
[1732367377279,0.0497,98538.0,98534.0,0.04318974]
[1732367377505,0.10201427,98537.0,98534.0,0.04318974]
[1732367377721,0.0497,98536.0,98534.0,0.04318974]
[1732367379704,0.0497,98536.0,98520.0,0.40058229]
[1732367379927,0.0497,98536.0,98522.0,0.023]
[1732367380375,0.0497,98536.0,98521.0,0.023]
[1732367380598,0.0497,98536.0,98516.0,0.023]
[1732367380809,0.10201427,98535.0,98516.0,0.023]
[1732367381036,0.0497,98534.0,98516.0,0.023]
[1732367381275,0.15171427,98534.0,98516.0,0.023]
[1732367381479,0.0497,98532.0,98505.0,0.023]
[1732367381687,0.00101504,98531.0,98506.0,0.35101503]
[1732367381865,0.00101504,98531.0,98506.0,0.00101503]
[1732367384174,0.0468,98530.0,98505.0,0.31401503]
[1732367384389,0.00126879,98529.0,98507.0,0.0759]
[1732367384594,0.00126879,98529.0,98508.0,0.00050752]
[1732367385225,0.0817,98528.0,98508.0,0.00050752]
[1732367385432,0.00126879,98527.0,98508.0,0.00050752]
[1732367385652,0.00126879,98527.0,98513.0,0.27110392]
[1732367386265,0.00126879,98527.0,98514.0,0.15]
[1732367386760,0.0468,98526.0,98514.0,0.15]
[1732367386965,0.04806879,98525.0,98514.0,0.15]
[1732367387408,0.04806879,98525.0,98512.0,0.15]
[1732367387842,0.04806879,98525.0,98512.0,0.42110392]
[1732367388063,0.04806879,98525.0,98511.0,0.15]
[1732367388487,0.04806879,98525.0,98510.0,0.15]
[1732367389741,0.04806879,98525.0,98513.0,0.15]
[1732367390789,0.04806879,98525.0,98512.0,0.15]
[1732367391004,0.0817,98524.0,98512.0,0.15]
[1732367391220,0.04806887,98523.0,98512.0,0.15]
[1732367391428,0.04806887,98523.0,98517.0,0.15]
[1732367392118,0.0468,98521.0,98517.0,0.15]
[1732367392331,0.00126885,98520.0,98517.0,0.15]
[1732367392551,0.04806885,98519.0,98511.0,0.15]
[1732367393387,0.04806885,98519.0,98510.0,0.15]
[1732367393586,0.04806885,98519.0,98510.0,0.42106567]
[1732367393809,0.02828885,98522.0,98510.0,0.42106567]
[1732367394013,0.02828885,98522.0,98510.0,0.15]
[1732367394224,0.00076122,98521.0,98509.0,0.42106567]
[1732367394503,0.02143755,98530.0,98509.0,0.15]
[1732367394719,0.10201427,98529.0,98509.0,0.15]
[1732367396016,0.10201427,98529.0,98508.0,0.27106567]
[1732367396017,0.10201427,98529.0,98508.0,0.15]
[1732367396468,0.09840456,98529.0,98506.0,0.0834202]
[1732367396884,0.0472,98528.0,98509.0,0.0017202]
[1732367397092,0.09184056,98527.0,98509.0,0.0017202]
[1732367397529,0.0753,98526.0,98509.0,0.0017202]
[1732367397756,0.10201427,98525.0,98509.0,0.0017202]
[1732367397985,0.0472,98524.0,98509.0,0.0017202]
[1732367398249,0.10201427,98523.0,98509.0,0.0017202]
[1732367398972,0.0472,98524.0,98509.0,0.03413598]
[1732367399176,0.002,98541.0,98509.0,0.0017202]
[1732367399379,0.10201427,98539.0,98509.0,0.0017202]
[1732367400657,0.10201427,98539.0,98520.0,0.05440198]
[1732367400871,0.20028298,98559.0,98531.0,0.15]
[1732367401078,0.10287437,98547.0,98531.0,0.15]
[1732367401696,0.10287437,98547.0,98522.0,0.15]
[1732367402112,0.0472,98546.0,98522.0,0.15]
[1732367405538,0.021292,98546.0,98523.0,0.023]
[1732367405766,0.01878889,98546.0,98523.0,0.023]
[1732367407017,0.01878889,98546.0,98524.0,0.15]
[1732367407897,0.01878889,98546.0,98524.0,0.42083858]
[1732367408314,0.01878889,98546.0,98525.0,0.023]
[1732367408934,0.01878889,98546.0,98524.0,0.42083858]
[1732367409142,0.01878889,98546.0,98529.0,0.15]
[1732367409815,0.01964929,98546.0,98529.0,0.15]
[1732367410456,0.01964929,98546.0,98529.0,0.42083858]
[1732367410671,0.01964929,98546.0,98531.0,0.15]
[1732367411777,0.10201427,98545.0,98529.0,0.15]
[1732367412189,0.10201427,98545.0,98522.0,0.04193958]
[1732367412190,0.10201427,98545.0,98527.0,0.15]
[1732367412397,0.10201427,98545.0,98526.0,0.14894141]
[1732367413246,0.0459,98544.0,98526.0,0.14894141]
[1732367413461,0.10201427,98543.0,98526.0,0.14894141]
[1732367413666,0.10201427,98543.0,98536.0,0.22589229]
[1732367414086,0.01425221,98543.0,98536.0,0.22589229]
[1732367414778,0.01425221,98543.0,98537.0,0.15]
[1732367415426,0.01425221,98543.0,98537.0,0.37590503]
[1732367415638,0.01425221,98543.0,98539.0,0.15]
[1732367416043,0.00508259,98543.0,98539.0,0.15]
[1732367416662,0.0459,98544.0,98539.0,0.15]
[1732367417474,0.04321085,98544.0,98539.0,0.15]
[1732367418310,0.04321085,98544.0,98539.0,0.14958057]
[1732367418939,0.04321085,98544.0,98539.0,0.14658057]
[1732367419163,0.04321085,98544.0,98541.0,0.22591056]
[1732367419361,0.04321085,98544.0,98542.0,0.22591056]
[1732367420388,0.04321085,98544.0,98543.0,0.22591056]
[1732367421229,0.04321085,98544.0,98543.0,0.37591056]
[1732367422747,0.04321085,98544.0,98539.0,0.04109805]
[1732367423198,0.04321085,98544.0,98534.0,0.42110538]
[1732367423683,0.0008604,98546.0,98544.0,0.15]
[1732367423929,0.0008604,98546.0,98545.0,0.37590482]
[1732367424149,0.0008604,98546.0,98545.0,0.60182132]
[1732367425100,0.0008604,98546.0,98545.0,0.3759165]
[1732367428536,0.00069415,98546.0,98545.0,0.3759165]
[1732367428795,0.00069415,98546.0,98545.0,0.41575248]
[1732367430732,0.00073164,98547.0,98545.0,0.41575248]
[1732367431193,0.00073164,98547.0,98545.0,0.41385719]
[1732367434767,0.00086,98546.0,98545.0,0.41385719]
[1732367435192,0.00086,98546.0,98545.0,0.04173195]
[1732367435609,0.00086,98546.0,98539.0,0.00172]
[1732367435825,0.00086,98546.0,98539.0,0.04341924]
[1732367436035,0.00086,98546.0,98539.0,0.00172]
[1732367436241,0.00086,98546.0,98539.0,0.15172]
[1732367438181,0.00086,98546.0,98541.0,0.15]
[1732367438863,0.00086,98546.0,98541.0,0.42102395]
[1732367439288,0.00086,98546.0,98539.0,0.42274395]
[1732367439501,0.00086,98546.0,98542.0,0.15]
[1732367440432,0.00086,98546.0,98542.0,0.42105321]
[1732367440636,0.00028298,98559.0,98544.0,0.15]
[1732367440840,0.00028298,98559.0,98544.0,0.42105321]
[1732367441271,0.00028298,98559.0,98546.0,0.15]
[1732367442453,0.00028298,98559.0,98544.0,0.42107484]
[1732367442663,0.00028298,98559.0,98546.0,0.15]
[1732367443104,0.00028298,98559.0,98546.0,0.27107484]
[1732367443330,0.00028298,98559.0,98548.0,0.15]
[1732367443761,0.05440198,98560.0,98548.0,0.15]
[1732367443969,0.10201427,98559.0,98548.0,0.15]
[1732367444603,0.10201427,98559.0,98545.0,0.15]
[1732367444836,0.10201427,98559.0,98545.0,0.42107484]
[1732367445331,0.10201427,98559.0,98547.0,0.15]
[1732367446213,0.09715727,98559.0,98547.0,0.15]
[1732367447500,0.09801727,98559.0,98547.0,0.15]
[1732367447698,0.09801727,98559.0,98546.0,0.15]
[1732367450688,0.09801727,98559.0,98545.0,0.27279484]
[1732367450689,0.09801727,98559.0,98549.0,0.15]
[1732367455627,0.09801727,98559.0,98546.0,0.15]
[1732367455808,0.09801727,98559.0,98545.0,0.00172]
[1732367458155,0.05440198,98555.0,98545.0,0.00172]
[1732367458368,0.10201427,98554.0,98545.0,0.00172]
[1732367458574,0.2,98551.0,98545.0,0.00172]
[1732367458780,0.10201427,98550.0,98545.0,0.00172]
[1732367459412,0.30201427,98550.0,98545.0,0.00172]
[1732367460914,0.10201427,98550.0,98545.0,0.00172]
[1732367467871,0.002,98549.0,98545.0,0.00172]
[1732367468074,0.10201427,98548.0,98545.0,0.00172]
[1732367468280,0.002,98547.0,98545.0,0.00172]
[1732367468481,0.10201427,98546.0,98545.0,0.00172]
[1732367468683,0.10201427,98546.0,98545.0,0.03353267]
[1732367478117,0.10168746,98546.0,98545.0,0.03353267]
[1732367480992,0.10368746,98546.0,98545.0,0.03353267]
[1732367481207,0.10168746,98546.0,98545.0,0.03353267]
[1732367481402,0.10368746,98546.0,98545.0,0.03353267]
[1732367481661,0.10168746,98546.0,98545.0,0.03353267]
[1732367482719,0.10368746,98546.0,98545.0,0.03353267]
[1732367484195,0.30368746,98546.0,98545.0,0.00172]
[1732367484587,0.43208746,98546.0,98545.0,0.00172]
[1732367484804,0.45104333,98546.0,98545.0,0.00172]
[1732367486022,0.37184333,98546.0,98545.0,0.00172]
[1732367486217,0.32264333,98546.0,98545.0,0.00172]
[1732367486478,0.12264333,98546.0,98545.0,0.00172]
[1732367486676,0.32264333,98546.0,98545.0,0.00172]
[1732367487265,0.30368746,98546.0,98545.0,0.00172]
[1732367489268,0.32265266,98546.0,98545.0,0.00172]
[1732367489496,0.30368746,98546.0,98545.0,0.00172]
[1732367490881,0.32249151,98546.0,98545.0,0.00172]
[1732367491365,0.30352646,98546.0,98545.0,0.00172]
[1732367491590,0.10352646,98546.0,98545.0,0.00172]
[1732367492314,0.002,98543.0,98521.0,0.38570201]
[1732367492554,0.10201427,98542.0,98503.0,0.0008603]
[1732367492784,0.05440198,98540.0,98511.0,0.01069359]
[1732367493003,0.10201427,98539.0,98511.0,0.01069359]
[1732367494319,0.10201427,98539.0,98511.0,0.16069359]
[1732367495519,0.10201427,98539.0,98514.0,0.0491]
[1732367495738,0.10201427,98539.0,98511.0,0.16069359]
[1732367495739,0.10201427,98539.0,98519.0,0.0491]
[1732367495954,0.0463,98543.0,98521.0,0.0491]
[1732367496159,0.10201427,98542.0,98523.0,0.01682947]
[1732367496372,0.05440198,98540.0,98523.0,0.01682947]
[1732367499312,0.05440198,98540.0,98523.0,0.06592947]
[1732367500160,0.10201427,98542.0,98523.0,0.06592947]
[1732367506186,0.10201427,98542.0,98524.0,0.15]
[1732367506862,0.10201427,98542.0,98524.0,0.55071134]
[1732367507066,0.10201427,98542.0,98533.0,0.15]
[1732367507240,0.10201427,98542.0,98531.0,0.15]
[1732367508271,0.10201427,98542.0,98528.0,0.15]
[1732367509241,0.0495,98541.0,98528.0,0.15]
[1732367511868,0.0495,98541.0,98527.0,0.40071134]
[1732367511869,0.04924668,98541.0,98527.0,0.15]
[1732367512895,0.04924668,98541.0,98526.0,0.55071134]
[1732367513455,0.04924668,98541.0,98526.0,0.15]
[1732367514073,0.03940205,98541.0,98526.0,0.15]
[1732367514282,0.03940205,98541.0,98523.0,0.21592947]
[1732367517529,0.03940205,98541.0,98523.0,0.16682947]
[1732367517977,0.03940205,98541.0,98523.0,0.01682947]
[1732367518667,0.03940205,98541.0,98522.0,0.15]
[1732367518878,0.0495,98539.0,98523.0,0.001721]
[1732367522502,0.0495,98537.0,98525.0,0.15]
[1732367523575,0.0495,98537.0,98523.0,0.001721]
[1732367524227,0.0495,98537.0,98526.0,0.15]
[1732367524430,0.0495,98537.0,98526.0,0.5508537]
[1732367524973,0.0495,98537.0,98526.0,0.15]
[1732367525202,0.0495,98537.0,98525.0,0.15]
[1732367525543,0.0495,98537.0,98527.0,0.15]
[1732367525989,0.0495,98537.0,98525.0,0.5508537]
[1732367526857,0.0495,98537.0,98525.0,0.15]
[1732367527273,0.0495,98537.0,98523.0,0.5525747]
[1732367527476,0.0495,98537.0,98523.0,0.151721]
[1732367527625,0.078,98536.0,98523.0,0.151721]
[1732367527840,0.0482,98535.0,98523.0,0.151721]
[1732367528046,0.0482,98535.0,98524.0,0.5508537]
[1732367528243,0.0482,98535.0,98524.0,0.15]
[1732367529249,0.0482,98535.0,98523.0,0.001721]
[1732367530109,0.0482,98535.0,98525.0,0.05440198]
[1732367532621,0.0482,98535.0,98526.0,0.5508537]
[1732367532762,0.0482,98535.0,98528.0,0.15]
[1732367534282,0.0482,98535.0,98525.0,0.20440198]
[1732367534999,0.0482,98535.0,98525.0,0.60525568]
[1732367535438,0.0482,98535.0,98527.0,0.15]
[1732367535824,0.0482,98535.0,98525.0,0.5508537]
[1732367536316,0.0482,98535.0,98527.0,0.15]
[1732367537346,0.0482,98535.0,98524.0,0.5508537]
[1732367538632,0.0482,98535.0,98525.0,0.03181267]
[1732367539693,0.0482,98535.0,98526.0,0.15]
[1732367541970,0.0482,98535.0,98527.0,0.32373914]
[1732367542205,0.0482,98535.0,98526.0,0.15]
[1732367542206,0.0482,98535.0,98526.0,0.27144298]
[1732367542629,0.0482,98535.0,98525.0,0.27144298]
[1732367543072,0.0482,98535.0,98524.0,0.27147134]
[1732367543534,0.04756602,98535.0,98525.0,0.27147134]
[1732367543766,0.04756602,98535.0,98526.0,0.27147134]
[1732367543995,0.04756602,98535.0,98523.0,0.001721]
[1732367544697,0.04756602,98535.0,98526.0,0.15]
[1732367545821,0.04756602,98535.0,98523.0,0.001721]
[1732367546995,0.04678701,98535.0,98523.0,0.001721]
[1732367547543,0.04678701,98535.0,98520.0,0.05440198]
[1732367548784,0.04678701,98535.0,98520.0,0.09481665]
[1732367549100,0.04678701,98535.0,98525.0,0.05440198]
[1732367552864,0.04678701,98535.0,98526.0,0.0151727]
[1732367554501,0.04672454,98535.0,98526.0,0.0151727]
[1732367554889,0.04305895,98535.0,98526.0,0.0151727]
[1732367559257,0.04305895,98535.0,98530.0,0.15]
[1732367560676,0.04305895,98535.0,98528.0,0.15]
[1732367561242,0.04305895,98535.0,98528.0,0.55086717]
[1732367561454,0.04305895,98535.0,98528.0,0.15]
[1732367562977,0.04305895,98535.0,98528.0,0.55086717]
[1732367563218,0.04305895,98535.0,98528.0,0.15]
[1732367563424,0.04305895,98535.0,98528.0,0.55086717]
[1732367563840,0.04305895,98535.0,98529.0,0.40086717]
[1732367564268,0.04305895,98535.0,98530.0,0.15]
[1732367564889,0.04305895,98535.0,98534.0,0.15]
[1732367565091,0.04041725,98535.0,98534.0,0.15]
[1732367566149,0.04041725,98535.0,98530.0,0.55086717]
[1732367566565,0.04041725,98535.0,98530.0,0.15]
[1732367566788,0.04041725,98535.0,98529.0,0.15]
[1732367569161,0.04041725,98535.0,98534.0,0.15]
[1732367569382,0.04041725,98535.0,98525.0,0.11052476]
[1732367569383,0.2,98571.0,98536.0,0.0459]
[1732367569675,0.2,98571.0,98549.0,0.05440198]
[1732367569676,0.10201427,98558.0,98549.0,0.05440198]
[1732367569903,0.10287427,98559.0,98549.0,0.05440198]
[1732367570313,0.00086,98559.0,98549.0,0.05440198]
[1732367570946,0.00072857,98559.0,98549.0,0.05440198]
[1732367571602,0.54646885,98567.0,98549.0,0.05640198]
[1732367571850,0.10201427,98566.0,98549.0,0.05640198]
[1732367572241,0.1295,98565.0,98549.0,0.05640198]
[1732367572453,0.10201427,98564.0,98549.0,0.05640198]
[1732367572861,0.10201427,98564.0,98549.0,0.05440198]
[1732367573494,0.10201427,98564.0,98542.0,0.15]
[1732367573695,0.10201427,98564.0,98550.0,0.05440198]
[1732367575702,0.10201427,98564.0,98555.0,0.01981734]
[1732367576967,0.10201427,98564.0,98550.0,0.05440198]
[1732367577542,0.1295,98565.0,98550.0,0.05440198]
[1732367577721,0.1295,98565.0,98555.0,0.019959]
[1732367577919,0.1295,98565.0,98550.0,0.05440198]
[1732367577920,0.01891818,98564.0,98550.0,0.05440198]
[1732367578143,0.01891818,98563.0,98556.0,0.02046288]
[1732367578318,0.1295,98565.0,98556.0,0.02046288]
[1732367578522,0.01891697,98564.0,98556.0,0.02046288]
[1732367578749,0.01891697,98563.0,98554.0,0.02034956]
[1732367578996,0.10191697,98562.0,98554.0,0.02034956]
[1732367579199,0.01891697,98561.0,98554.0,0.02034956]
[1732367579405,0.01891697,98560.0,98554.0,0.02034956]
[1732367579670,0.01891697,98559.0,98554.0,0.02034956]
[1732367579886,0.083,98562.0,98554.0,0.02034956]
[1732367580085,0.01891735,98561.0,98540.0,0.05440198]
[1732367580289,0.01891735,98560.0,98540.0,0.05440198]
[1732367580499,0.01891735,98559.0,98552.0,0.02007839]
[1732367580703,0.01891735,98558.0,98552.0,0.02007839]
[1732367580913,0.10191785,98557.0,98552.0,0.02007839]
[1732367581693,0.083,98557.0,98552.0,0.02007839]
[1732367582506,0.083,98557.0,98550.0,0.05440198]
[1732367582698,0.07695818,98557.0,98550.0,0.05440198]
[1732367583014,0.01891815,98556.0,98550.0,0.05440198]
[1732367583391,0.01891815,98555.0,98550.0,0.05440198]
[1732367583591,0.0008604,98557.0,98550.0,0.05440198]
[1732367583816,0.018918,98556.0,98551.0,0.03434931]
[1732367583973,0.018918,98555.0,98551.0,0.03434931]
[1732367584148,0.018918,98554.0,98553.0,0.02030145]
[1732367584550,0.008118,98554.0,98553.0,0.02030145]
[1732367584957,0.0008604,98557.0,98553.0,0.02030145]
[1732367585164,0.0008604,98557.0,98541.0,0.19126514]
[1732367585390,0.0008604,98557.0,98548.0,0.002]
[1732367586372,0.0008604,98557.0,98540.0,0.0725027]
[1732367586774,0.0008604,98557.0,98540.0,0.1140391]
[1732367587401,0.0008604,98557.0,98541.0,0.00101467]
[1732367589063,0.0008604,98557.0,98542.0,0.0797]
[1732367589261,0.0008604,98557.0,98542.0,0.07838179]
[1732367589546,0.0008604,98557.0,98543.0,0.00101467]
[1732367592612,0.0008604,98557.0,98547.0,0.05440198]
[1732367595746,0.0008604,98557.0,98548.0,0.00101466]
[1732367596569,0.0008604,98557.0,98547.0,0.05612238]
[1732367597393,0.0008604,98557.0,98548.0,0.00101462]
[1732367601463,0.12293818,98566.0,98548.0,0.00101462]
[1732367601616,0.01895584,98565.0,98548.0,0.00101462]
[1732367601813,0.01895584,98564.0,98548.0,0.00101462]
[1732367602044,0.01895584,98563.0,98548.0,0.00101462]
[1732367602202,0.01895584,98562.0,98548.0,0.00101462]
[1732367602408,0.01895584,98561.0,98548.0,0.00101462]
[1732367602625,0.01895584,98560.0,98548.0,0.00101462]
[1732367602842,0.01895584,98559.0,98548.0,0.00101462]
[1732367603061,0.01895532,98558.0,98548.0,0.00101462]
[1732367603286,0.01895532,98557.0,98548.0,0.00101462]
[1732367603506,0.12293818,98566.0,98548.0,0.00101462]
[1732367603719,0.0492824,98565.0,98548.0,0.00101462]
[1732367603937,0.0492824,98564.0,98548.0,0.00101462]
[1732367604146,0.12293818,98566.0,98548.0,0.00101462]
[1732367604147,0.0492824,98563.0,98548.0,0.00101462]
[1732367604372,0.01895477,98562.0,98548.0,0.00101462]
[1732367604586,0.01895477,98561.0,98548.0,0.00101462]
[1732367604789,0.01895477,98560.0,98548.0,0.00101462]
[1732367605006,0.01895477,98559.0,98548.0,0.00101462]
[1732367605214,0.01895477,98558.0,98548.0,0.00101462]
[1732367605441,0.01895438,98557.0,98548.0,0.00101462]
[1732367605649,0.01895438,98556.0,98548.0,0.00101462]
[1732367605861,0.01895438,98555.0,98548.0,0.00101462]
[1732367606074,0.01895425,98554.0,98548.0,0.00101462]
[1732367606303,0.01895416,98553.0,98548.0,0.00101462]
[1732367606512,0.12293818,98566.0,98548.0,0.00101462]
[1732367606746,0.01895416,98565.0,98548.0,0.00101462]
[1732367606968,0.04928082,98564.0,98548.0,0.00101462]
[1732367607179,0.04928082,98563.0,98548.0,0.00101462]
[1732367607389,0.04928082,98562.0,98548.0,0.00101462]
[1732367607599,0.04928082,98561.0,98548.0,0.00101462]
[1732367607858,0.04928082,98560.0,98548.0,0.00101462]
[1732367608069,0.04928082,98559.0,98548.0,0.00101462]
[1732367608274,0.01895416,98558.0,98548.0,0.00101462]
[1732367608470,0.01895416,98557.0,98548.0,0.00101462]
[1732367608673,0.01895416,98556.0,98548.0,0.00101462]
[1732367608877,0.12293818,98566.0,98548.0,0.00101462]
[1732367608878,0.01895416,98555.0,98548.0,0.00101462]
[1732367609078,0.01895416,98554.0,98548.0,0.00101462]
[1732367609283,0.0008603,98560.0,98548.0,0.00101462]
[1732367609484,0.01895451,98559.0,98548.0,0.00101462]
[1732367609730,0.0008603,98560.0,98548.0,0.00101462]
[1732367609731,0.01895451,98558.0,98548.0,0.00101462]
[1732367610107,0.0008603,98560.0,98548.0,0.00101462]
[1732367610318,0.01895454,98559.0,98548.0,0.00101462]
[1732367610560,0.01895454,98558.0,98548.0,0.00101462]
[1732367610786,0.0008603,98560.0,98548.0,0.00101462]
[1732367610992,0.01895461,98559.0,98548.0,0.00101462]
[1732367611166,0.0008603,98560.0,98548.0,0.00101462]
[1732367612420,0.0008603,98560.0,98550.0,0.05440198]
[1732367617774,0.0008603,98560.0,98551.0,0.00101461]
[1732367619362,0.0008603,98560.0,98552.0,0.00016534]
[1732367619572,0.0008603,98560.0,98552.0,0.00101454]
[1732367619811,0.0008603,98560.0,98553.0,0.00101454]
[1732367620036,0.0008603,98560.0,98552.0,0.00101454]
[1732367620297,0.0008603,98560.0,98554.0,0.15]
[1732367620565,0.29999999,98567.0,98554.0,0.15]
[1732367620566,0.29999999,98567.0,98555.0,0.12501427]
[1732367620812,0.29999999,98567.0,98558.0,0.023]